Cogmind - Beta 16 @@@ ROGUE MODE // 2026.01.20 @ 15:22:31 Player: monistgf Result: Self-destructed Performance ------------- Evolutions (5) 2500 Regions Visited (11) 2200 Robots Destroyed (121) 605 Value Destroyed (3605) 3605 Prototype IDs (15) 300 Alien Tech Used (0) 0 Bonus (636) 636 TOTAL SCORE: 9846 Bonus ------- High Alert Combat Kills 22 Follower Combat Kills 314 Met Data Miner 300 Cogmind --------- Core Integrity 46/1000 Matter 98/300 Energy 100/100 System Corruption 3% Temperature Cool (0) Movement Hovering (71) Location -5/Factory Parts ------- > --- POWER (2) -------- (None) > --- PROPULSION (7) --- Gyrokinetic Inverter Combat Gravmag System > --- UTILITY (6) ------ Large Storage Unit Advanced Hacking Suite Improved System Shield > --- WEAPON (2) ------- (None) > --- INVENTORY (15) --- Compact Wheel VTOL Module Improved Cooling System Seismic Detector Advanced Targeting Computer Weapon Cycler Improved Transmission Jammer Light Regenerative Plating Improved Arc Projector Wave Gun Wave Gun Heavy Rocket Launcher Peak State ------------ > --- POWER ------------ Light Nuclear Core Micro Fission Core > --- PROPULSION ------- Gravmag Array Linear Gravjet Combat Gravmag System Combat Gravmag System Combat Gravmag System Combat Gravmag System > --- UTILITY ---------- Large Storage Unit Improved Targeting Computer Makeshift Hacking Suite Advanced Hacking Suite Improved System Shield Improved System Restoration Module > --- WEAPON ----------- Wave Gun Wave Gun > --- INVENTORY -------- Compact Wheel Gyrokinetic Inverter Weapon Cycler Improved Transmission Jammer Improved Arc Projector Flak Gun Heavy Rocket Launcher [Rating: 87] Favorites ----------- Power Light Nuclear Core Engine Ion Engine Power Core Light Nuclear Core Propulsion Wheel Treads Light Treads Leg Improved Aluminum Leg Wheel Wheel Hover Unit Aerolev Unit Utility High-capacity Storage Unit Device Improved Sensor Array Storage High-capacity Storage Unit Processor Enhanced Optical Array Hackware Hacking Suite Protection Reflective Plating Weapon Minigun Energy Gun Medium Laser Ballistic Gun Minigun Ballistic Cannon Magnetic Acceleration Cannon Launcher Heavy Rocket Launcher Impact Weapon Powered Hammer Build | -11 -10 -9 -8 -8 -7 -6 -6 -6 -6 -5 -5 ------- Run | Yrd Mat Mat Mat Sto Fac Fac Low Low Dat Pro Fac Slots Evolved 10 | . . 2 2 . 2 2 . . . . 2 Power 1 | . . . . . . 1 . . . . . Propulsion 5 | . . 2 . . 2 1 . . . . . Utility 4 | . . . 2 . . . . . . . 2 Weapon . | . . . . . . . . . . . . Parts Attached 126 | . 11 18 11 8 18 28 2 3 2 1 24 Power 17 | . 2 1 2 1 2 5 . 1 1 . 2 Engine 3 | . 2 . . . . . . 1 . . . Core 14 | . . 1 2 1 2 5 . . 1 . 2 Reactor . | . . . . . . . . . . . . Propulsion 61 | . 5 14 3 3 12 11 1 . . . 12 Treads 16 | . 2 5 2 2 2 2 1 . . . . Leg 4 | . . 4 . . . . . . . . . Wheel 15 | . 3 5 1 . 1 5 . . . . . Hover 26 | . . . . 1 9 4 . . . . 12 Flight . | . . . . . . . . . . . . Utility 26 | . 2 1 5 2 1 6 1 1 1 1 5 Device 8 | . . . 1 1 . 2 1 1 . . 2 Storage 3 | . 1 . 1 . . . . . . . 1 Processor 6 | . . . 1 . . 4 . . . . 1 Hackware 5 | . . . . 1 1 . . . 1 1 1 Protection 4 | . 1 1 2 . . . . . . . . Artifact . | . . . . . . . . . . . . Weapon 22 | . 2 2 1 2 3 6 . 1 . . 5 Energy Gun 4 | . 1 . . . . . . . . . 3 Energy Cannon . | . . . . . . . . . . . . Ballistic Gun 12 | . 1 2 . 2 . 5 . . . . 2 Ballistic Cannon 3 | . . . . . 2 . . 1 . . . Launcher 2 | . . . 1 . . 1 . . . . . Special Weapon . | . . . . . . . . . . . . Impact Weapon 1 | . . . . . 1 . . . . . . Slashing Weapon . | . . . . . . . . . . . . Piercing Weapon . | . . . . . . . . . . . . Special Melee Weapon . | . . . . . . . . . . . . Unidentified Prototypes 4 | . . . . 1 1 1 . . . . 1 Parts Lost 64 | . 4 1 4 2 2 20 . 11 . . 20 Power 11 | . 1 . 2 . 1 2 . 2 . . 3 Propulsion 34 | . 2 1 . . . 14 . 6 . . 11 Utility 9 | . . . 2 . 1 2 . . . . 4 Weapon 10 | . 1 . . 2 . 2 . 3 . . 2 Highest Loss Streak 11 | . 4 1 2 1 2 7 . 10 . . 11 To Critical Strikes 1 | . . . . . . . . 1 . . . Average Backups 14 | . 9 18 18 17 18 18 14 8 2 3 7 Power . | . . 1 . . . . 1 1 . . . Propulsion 5 | . 6 7 7 9 8 3 1 1 . . 2 Utility 4 | . 1 4 3 2 4 7 8 4 . . 2 Weapon 3 | . . 4 6 5 4 6 4 2 1 1 2 Tool/Special . | . . . . . . . . . . . . Unused Backups 41 | . 7 6 3 . 3 6 . 9 . . 7 Power 3 | . 1 . . . . 1 . 1 . . . Propulsion 12 | . 3 5 . . 2 . . . . . 2 Utility 18 | . 2 . . . . 4 . 8 . . 4 Weapon 8 | . 1 1 3 . 1 1 . . . . 1 Tool/Special . | . . . . . . . . . . . . Average Slot Usage (%) 84 | . 92 99 99 99 94 92 93 31 18 32 67 Engine 2 | . 14 2 . . . . . . . . . Core 7 | . . 8 8 9 7 12 13 2 3 6 7 Treads 9 | . 11 15 18 18 15 5 6 3 . . . Leg 1 | . 1 6 . . . . . . . . . Wheel 11 | . 14 21 18 17 4 4 33 5 . . . Hover 10 | . . . . . 21 29 . . 3 6 24 Device 4 | . . . 9 9 7 5 5 6 6 6 4 Storage 7 | . 14 11 9 9 7 6 6 2 . . 3 Processor 2 | . . . 8 . . 4 13 4 . . 1 Hackware 5 | . . . . 8 8 9 . . 3 12 14 Protection 4 | . 7 11 9 9 5 . . . . . . Energy Gun 3 | . 18 . . . . . . . . . 6 Ballistic Gun 11 | . 9 21 17 17 12 9 13 3 . . 1 Peak Build Rating 87 | . 10 21 31 36 49 72 45 44 23 28 87 Average Rating 35 | . 7 19 27 32 45 59 40 17 19 27 62 On Entrance 24 | 6 6 9 21 30 33 48 41 45 7 23 28 Avg Prop Armor Cover (%) 13 | . 10 13 14 14 25 9 8 15 . . 5 Naked Turns 1 | . . . . . . . . 1 . . . Heaviest Build 67 | 14 52 55 56 56 60 67 63 64 7 7 42 Greatest Support 87 | 20 40 52 28 28 51 80 50 40 20 20 87 Greatest Overweight (x) 6 | . 5 2 1 1 2 6 1 2 . . 1 Average Overweight (x) . | . 2 1 1 1 . . 1 . . . . Largest Inventory Capacity 20 | . 20 20 20 20 20 20 20 20 5 5 15 Average Capacity 17 | . 19 20 20 20 20 20 20 10 5 5 12 Most Carried 20 | . 19 20 20 20 20 20 16 17 5 4 12 Average Carried 14 | . 9 18 17 17 18 18 15 9 1 3 7 Final Capacity 20 | 8 20 20 20 20 20 20 20 5 5 5 15 Final Carried 20 | 6 16 20 16 19 19 16 16 5 1 4 12 Class Distribution -------------------- 50% | Mutant 20% | Hacker-Mutant 18% | Scavenger-Mutant 4% | Commander-Mutant 3% | Scavenger-Sprinter Dominant Class ---------------- Mutant | -10/Materials Mutant | -9/Materials Mutant | -8/Materials Commander-Mutant | -8/Storage Mutant | -7/Factory Scavenger-Mutant | -6/Factory Scavenger-Mutant | -6/Lower Caves Mutant | -6/Lower Caves Mutant | -6/Data Miner Hacker-Mutant | -5/Proximity Caves Hacker-Mutant | -5/Factory Resources | -11 -10 -9 -8 -8 -7 -6 -6 -6 -6 -5 -5 ----------- Run | Yrd Mat Mat Mat Sto Fac Fac Low Low Dat Pro Fac Matter Collected 4330 | 200 184 641 502 266 488 1563 28 215 . 58 185 Remotely . | . . . . . . . . . . . . Salvage Created 4237 | . 439 740 584 156 389 1420 . 297 . . 212 Parts 263 | . 14 52 40 24 29 73 . 18 . . 13 Haulers Intercepted 4 | . 1 2 . . . . . . . . 1 Recyclers Shooed 6 | . . 1 2 . . 2 . . . . 1 Parts Field Recycled . | . . . . . . . . . . . . Retrieved Matter . | . . . . . . . . . . . . Parts Self-Destructed 14 | . . . . . . . . 14 . . . Prevented . | . . . . . . . . . . . . Parts Restored . | . . . . . . . . . . . . Kills | -11 -10 -9 -8 -8 -7 -6 -6 -6 -6 -5 -5 ------- Run | Yrd Mat Mat Mat Sto Fac Fac Low Low Dat Pro Fac Combat Hostiles Destroyed 83 | . 8 14 11 7 5 22 . 9 . . 7 Melee 1 | . . . . . . 1 . . . . . Guns 61 | . 8 14 9 3 4 20 . 3 . . . Cannons 1 | . . . . . . . . 1 . . . AOE 19 | . . . 2 4 . 1 . 5 . . 7 Classes Destroyed 14 | . 4 5 2 . 1 1 . . . . 1 Worker 7 | . . . 1 1 . 3 . . . . 2 Builder 10 | . 1 . 2 . 1 5 . . . . 1 Tunneler 4 | . 1 1 . . . 2 . . . . . Hauler 4 | . 1 2 . . . . . . . . 1 Recycler 5 | . . 1 1 . 1 2 . . . . . Mechanic 1 | . . . . . . 1 . . . . . Operator 2 | . . . 1 . 1 . . . . . . Watcher 5 | . . 1 1 2 . 1 . . . . . Swarmer 29 | . . 3 4 6 . 8 . 4 . . 4 Grunt 27 | . 8 5 5 . 1 7 . 1 . . . Duelist 5 | . . 1 . . . . . 4 . . . Sentry 15 | . . 5 2 1 3 4 . . . . . Hunter 1 | . . . . . . . . . . . 1 Programmer 6 | . . . . . 1 3 . . . . 2 Best Kill Streak 11 | . 2 4 5 4 2 11 . 5 . . 5 Combat Bots Only 9 | . 2 4 4 4 2 9 . 5 . . 4 Max Kills in Single Turn 4 | . 1 1 2 2 1 2 . 3 . . 4 Gunslinging 1 | . . . . . . 1 . . . . . Exploded 3 | . . . 1 2 . 1 . 2 . . 3 Melee 1 | . . . . . . 1 . . . . . Uniques/NPCs Destroyed . | . . . . . . . . . . . . Combat | -11 -10 -9 -8 -8 -7 -6 -6 -6 -6 -5 -5 -------- Run | Yrd Mat Mat Mat Sto Fac Fac Low Low Dat Pro Fac Hostile Shots Fired 876 | . 56 50 70 16 135 261 . 48 . . 240 Missed 258 | . 9 12 22 3 41 82 . 10 . . 79 Hits 618 | . 47 38 48 13 94 179 . 38 . . 161 Melee 19 | . . 2 . . . . . 17 . . . Projectile 599 | . 47 36 48 13 94 179 . 21 . . 161 Critical Strikes 23 | . 1 1 2 . 1 4 . 6 . . 8 Part Disruptions 1 | . . . . . . . . . . . 1 Damage Taken 9288 | . 634 497 628 126 856 2068 . 1024 . . 3455 Core 1660 | . 75 54 55 20 50 318 . 134 . . 954 Absorbed by Shields . | . . . . . . . . . . . . Ignored by Resistances 144 | . . 40 54 4 46 . . . . . . Core Remaining (%) 80 | 100 70 86 . 86 92 . . . . 46 . Volleys Fired 308 | . 43 48 45 14 43 71 . 20 . . 24 Largest 2 | . 2 2 2 2 2 2 . 2 . . 2 Hottest 162 | . 100 50 58 50 50 60 . 74 . . 162 Shots Fired 574 | . 85 96 90 25 72 138 . 32 . . 36 Gun 533 | . 85 96 88 22 59 136 . 17 . . 30 Cannon 23 | . . . . . 13 . . 10 . . . Launcher 18 | . . . 2 3 . 2 . 5 . . 6 Special . | . . . . . . . . . . . . Kinetic 493 | . 36 96 88 22 72 136 . 27 . . 16 Thermal 63 | . 49 . . . . . . . . . 14 Explosive 18 | . . . 2 3 . 2 . 5 . . 6 Electromagnetic . | . . . . . . . . . . . . Robot Hit Streak 20 | . 10 10 13 10 8 20 . 9 . . 10 Robot Miss Streak 3 | . 3 2 3 1 1 3 . 3 . . 2 Penetration Max 2 | . . . . . . 2 . 1 . . . Secondary Targets 6 | . . . 1 . . 4 . 1 . . . Max Gunslinging Chain 1 | . . . 1 . . 1 . 1 . . . Shots Hit Robots 404 | . 57 62 61 16 42 116 . 22 . . 28 Core Hits 211 | . 25 25 29 19 14 57 . 17 . . 25 Critical Kills 2 | . . . . . . 2 . . . . . Critical Parts Destroyed 11 | . . 2 1 . 2 6 . . . . . Critical Strikes 16 | . 2 2 1 . 2 9 . . . . . Burn 2 | . 2 . . . . . . . . . . Destroy 12 | . . 2 1 . 2 7 . . . . . Smash 2 | . . . . . . 2 . . . . . Melee Attacks 39 | . . . . . 3 36 . . . . . Impact 39 | . . . . . 3 36 . . . . . Slashing . | . . . . . . . . . . . . Piercing . | . . . . . . . . . . . . Sneak Attacks 5 | . . . . . . 5 . . . . . Combat Hostiles . | . . . . . . . . . . . . Follow-up Attacks . | . . . . . . . . . . . . Damage Inflicted 10934 | . 685 1109 1295 621 745 3713 . 1049 . . 1717 Guns 7459 | . 685 1109 1054 265 745 2696 . 268 . . 637 Cannons 271 | . . . . . . . . 271 . . . Explosions 2361 | . . . 241 356 . 216 . 510 . . 1038 Melee 801 | . . . . . . 801 . . . . . Ramming 42 | . . . . . . . . . . . 42 Kinetic 6945 | . 234 1109 1054 265 745 2696 . 539 . . 303 Thermal 1063 | . 451 . 33 . . . . . . . 579 Explosive 2083 | . . . 208 356 . 216 . 510 . . 793 Electromagnetic . | . . . . . . . . . . . . Impact 801 | . . . . . . 801 . . . . . Slashing . | . . . . . . . . . . . . Piercing . | . . . . . . . . . . . . Highest Corruption 5 | . . . . . 1 5 . 4 . . 3 Average Corruption 1 | . . . . . 1 2 . 2 . . 1 Corruption Purged 9 | . . . . . . 5 . 4 . . . Corruption Blocked . | . . . . . . . . . . . . Effects 10 | . . . . . 2 6 . 1 . . 1 Message Errors 2 | . . . . . 1 1 . . . . . Matter Fused 3 | . . . . . 1 1 . . . . 1 Heat Flow Errors 2 | . . . . . . 2 . . . . . Energy Discharges 1 | . . . . . . 1 . . . . . Data Loss (major) 1 | . . . . . . . . 1 . . . Weapon Failures 1 | . . . . . . 1 . . . . . Overload Shots . | . . . . . . . . . . . . Overflow Damage 363 | . . . 19 . . 207 . 50 . . 87 Projectiles 21 | . . . . . . . . 21 . . . Explosions 160 | . . . 19 . . 25 . 29 . . 87 Melee 182 | . . . . . . 182 . . . . . Knockbacks 4 | . . . . . . 1 . 3 . . . Impact 1 | . . . . . . 1 . . . . . Kinetic 3 | . . . . . . . . 3 . . . Secondary . | . . . . . . . . . . . . Self-Inflicted Damage 243 | . . . 36 . . 36 . 30 . . 141 Shots 6 | . . . 1 . . 1 . 1 . . 3 Rammed 3 | . . . . . . . . . . . 3 Targets Rammed 3 | . . . . . . . . . . . 3 Kicked . | . . . . . . . . . . . . Crushed . | . . . . . . . . . . . . Highest Temperature 318 | . 318 51 69 34 128 281 . 3 . . 312 Average Temperature 70 | . 78 17 20 9 35 45 . 1 . . 169 Received Heat Transfer 2442 | . 372 177 261 18 345 606 . 54 . . 609 Effects 2 | . . . . . . . . . . . 2 Interference 1 | . . . . . . . . . . . 1 Matter Decay 1 | . . . . . . . . . . . 1 Siege Activations . | . . . . . . . . . . . . Martial Activations . | . . . . . . . . . . . . Shielding Activations . | . . . . . . . . . . . . Robots Disrupted . | . . . . . . . . . . . . Combat Hostiles . | . . . . . . . . . . . . Robots Corrupted 1 | . . . . . . 1 . . . . . Combat Hostiles . | . . . . . . . . . . . . Parts Fried 3 | . . . . . . 3 . . . . . Impact Corruptions 8 | . . . . . . 8 . . . . . Robots Melted . | . . . . . . . . . . . . Combat Hostiles . | . . . . . . . . . . . . Parts Melted 5 | . 3 . . . 2 . . . . . . Heat Transferred 2198 | . 1480 . 50 . . . . . . . 668 Parts Sabotaged . | . . . . . . . . . . . . Parts Stolen . | . . . . . . . . . . . . Parts Stripped . | . . . . . . . . . . . . Power Chain Reactions . | . . . . . . . . . . . . Alert | -11 -10 -9 -8 -8 -7 -6 -6 -6 -6 -5 -5 ------- Run | Yrd Mat Mat Mat Sto Fac Fac Low Low Dat Pro Fac Maximum Alert Level 2 | . . . 1 2 1 2 . . . . 2 Low Security (%) 87 | . 100 100 90 15 95 90 . . . . 82 Level 1 7 | . . . 9 50 4 4 . . . . 5 Level 2 5 | . . . . 34 . 5 . . . . 12 Level 3 . | . . . . . . . . . . . . Level 4 . | . . . . . . . . . . . . Level 5 . | . . . . . . . . . . . . High Security . | . . . . . . . . . . . . Max Security . | . . . . . . . . . . . . Peak Influence 530 | . 45 197 238 502 210 449 . . . . 530 Initial 210 | . . 8 63 93 210 90 . . . . . Average 85 | . 9 72 86 331 85 64 . . . . 91 Influence Increases 4264 | . 240 511 427 739 356 898 . 245 . . 848 Destroy 0b10 Robot/C 1860 | . 160 280 220 340 100 440 . 180 . . 140 Destroy 0b10 Robot/NC 195 | . 15 25 30 20 15 70 . . . . 20 Destroy Leader 458 | . 42 86 52 84 40 102 . 20 . . 32 Allied During Kill 175 | . . . . 175 . . . . . . . Successful Hack 115 | . 7 12 4 24 24 20 . . . . 24 Disable Machine 150 | . . 15 15 45 . 15 . . . . 60 Destroy Structure 261 | . 1 3 31 51 12 41 . . . . 122 Partial Spotted 105 | . . . . . 30 75 . . . . . Lose Combat Pursuer 945 | . 15 90 75 . 135 135 . 45 . . 450 Influence Decreases 3752 | . 219 382 355 499 633 639 387 292 10 . 336 Entered New Map 763 | . . 13 87 129 252 95 165 12 10 . . Time Decay 2258 | . 204 359 228 230 338 365 222 150 . . 162 Lost Part 558 | . 15 10 40 20 20 169 . 110 . . 174 Lost Ally 173 | . . . . 120 23 10 . 20 . . . Squads Dispatched 24 | . 1 1 1 3 2 10 . 1 . . 5 Investigation 2 | . . . . . . . . . . . 2 Extermination 6 | . . . . . 1 4 . . . . 1 Reinforcement 14 | . 1 1 1 3 1 5 . . . . 2 Assault 2 | . . . . . . 1 . 1 . . . Garrison . | . . . . . . . . . . . . Intercept . | . . . . . . . . . . . . Searches Triggered . | . . . . . . . . . . . . Construction Impeded 5 | . . . . 1 . 2 . . . . 2 Haulers Reinforced 2 | . . . . . . 2 . . . . . Active Scanning Responses . | . . . . . . . . . . . . Cargo Convoy Interrupts . | . . . . . . . . . . . . Stealth | -11 -10 -9 -8 -8 -7 -6 -6 -6 -6 -5 -5 --------- Run | Yrd Mat Mat Mat Sto Fac Fac Low Low Dat Pro Fac Distress Signals 15 | . . 2 4 2 4 3 . . . . . Communications Jammed . | . . . . . . . . . . . . Distress Signals . | . . . . . . . . . . . . Times Spotted 199 | . 12 25 16 21 22 39 . 18 . . 46 Peak Tracking Total 15 | . 3 6 6 7 6 7 . 7 . . 15 Tactical Retreats 32 | . 1 2 3 . 5 6 . 2 . . 13 Traps | -11 -10 -9 -8 -8 -7 -6 -6 -6 -6 -5 -5 ------- Run | Yrd Mat Mat Mat Sto Fac Fac Low Low Dat Pro Fac Traps Triggered 8 | . 1 2 . . . 5 . . . . . Indirectly . | . . . . . . . . . . . . Trap Hack Attempts . | . . . . . . . . . . . . Triggered . | . . . . . . . . . . . . Disarmed . | . . . . . . . . . . . . Reprogrammed . | . . . . . . . . . . . . Reused . | . . . . . . . . . . . . Traps Extracted . | . . . . . . . . . . . . Installed . | . . . . . . . . . . . . Triggered . | . . . . . . . . . . . . Machines | -11 -10 -9 -8 -8 -7 -6 -6 -6 -6 -5 -5 ---------- Run | Yrd Mat Mat Mat Sto Fac Fac Low Low Dat Pro Fac Machines Disabled 10 | . . 1 1 3 . 1 . . . . 4 Max in Single Turn 2 | . . 1 1 1 . 1 . . . . 2 Garrison Access 3 | . . . . 1 1 1 . . . . . Machines Repaired . | . . . . . . . . . . . . Machines Dismantled . | . . . . . . . . . . . . Machines Sabotaged . | . . . . . . . . . . . . Overloaded Fab Kills . | . . . . . . . . . . . . Hacking | -11 -10 -9 -8 -8 -7 -6 -6 -6 -6 -5 -5 --------- Run | Yrd Mat Mat Mat Sto Fac Fac Low Low Dat Pro Fac Machines Accessed 40 | . 5 3 3 8 8 4 1 . 4 . 4 Terminals 27 | . 5 3 3 7 5 2 . . . . 2 Fabricators 4 | . . . . . 1 1 . . . . 2 Repair Stations 1 | . . . . . 1 . . . . . . Recycling Units . | . . . . . . . . . . . . Scanalyzers . | . . . . . . . . . . . . Garrison Access 3 | . . . . 1 1 1 . . . . . Total Hacks 133 | . 9 10 13 15 19 11 1 . 34 . 21 Successful 80 | . 1 5 4 8 10 4 1 . 34 . 13 Failed 53 | . 8 5 9 7 9 7 . . . . 8 Catastrophic 12 | . 4 1 1 4 1 1 . . . . . Database Lockouts . | . . . . . . . . . . . . Manual 39 | . 4 5 6 7 2 3 . . . . 12 Terminals 77 | . 9 10 13 14 11 7 . . . . 13 Fabricators 13 | . . . . . 3 2 . . . . 8 Repair Stations 2 | . . . . . 2 . . . . . . Recycling Units . | . . . . . . . . . . . . Scanalyzers . | . . . . . . . . . . . . Garrison Access 6 | . . . . 1 3 2 . . . . . Terminal Hacks 60 | . 1 4 3 6 5 . 1 . 34 . 6 Record 11 | . . . . . . . . . 11 . . Part Schematic 15 | . . . . . . . . . 13 . 2 Robot Schematic 7 | . . . . . . . . . 7 . . Prototype ID Bank 4 | . . . . . 1 . . . 3 . . Open Door 3 | . . . . 2 . . 1 . . . . Branch Access Points 3 | . 1 1 . . . . . . . . 1 Alert Level 3 | . . . 1 . 1 . . . . . 1 Locate Traps 7 | . . 2 1 1 2 . . . . . 1 Recall Reinforcements 1 | . . . . 1 . . . . . . . Zone Layout 6 | . . 1 1 2 1 . . . . . 1 Fabricator Hacks 7 | . . . . . 1 1 . . . . 5 Network Status 3 | . . . . . 1 1 . . . . 1 Load Schematic 2 | . . . . . . . . . . . 2 Build 2 | . . . . . . . . . . . 2 Repair Station Hacks 1 | . . . . . 1 . . . . . . Scan Component 1 | . . . . . 1 . . . . . . Recycling Unit Hacks . | . . . . . . . . . . . . Scanalyzer . | . . . . . . . . . . . . Garrison Access Hacks 3 | . . . . 1 1 1 . . . . . Seal Access 3 | . . . . 1 1 1 . . . . . Unauthorized Hacks 9 | . . 1 1 1 2 2 . . . . 2 Terminals 6 | . . 1 1 1 . 2 . . . . 1 Assimilate 1 | . . . . . . 1 . . . . . Botnet 5 | . . 1 1 1 . 1 . . . . 1 Fabricators 3 | . . . . . 2 . . . . . 1 Report 1 | . . . . . 1 . . . . . . Prioritize 1 | . . . . . . . . . . . 1 Fabnet 1 | . . . . . 1 . . . . . . Repair Stations . | . . . . . . . . . . . . Recycling Units . | . . . . . . . . . . . . Scanalyzers . | . . . . . . . . . . . . Garrison Access . | . . . . . . . . . . . . Data Cores Recovered 1 | . . . . . 1 . . . . . . Used 1 | . . . . . 1 . . . . . . Hacking Detections 31 | . 5 3 3 5 7 4 . . . . 4 Full Trace Events 3 | . 1 . . . . . . . . . 2 Feedback Events . | . . . . . . . . . . . . Feedback Blocked . | . . . . . . . . . . . . Robot Schematics Acquired 7 | . . . . . . . . . 7 . . Robots Built . | . . . . . . . . . . . . Authchips . | . . . . . . . . . . . . Time . | . . . . . . . . . . . . Total Robot Build Rating . | . . . . . . . . . . . . Part Schematics Acquired 15 | . . . . . . . . . 13 . 2 Parts Built 2 | . . . . . . . . . . . 2 Authchips . | . . . . . . . . . . . . Time 118 | . . . . . . . . . . . 118 Total Part Build Rating 11 | . . . . . . . . . . . 11 Part Studies Acquired . | . . . . . . . . . . . . Parts Repaired . | . . . . . . . . . . . . Time . | . . . . . . . . . . . . Parts Recycled . | . . . . . . . . . . . . Recycled Matter . | . . . . . . . . . . . . Retrieved Matter . | . . . . . . . . . . . . Retrieved Components . | . . . . . . . . . . . . Parts Scanalyzed . | . . . . . . . . . . . . Part Schematics Acquired . | . . . . . . . . . . . . Parts Damaged . | . . . . . . . . . . . . Bothacking | -11 -10 -9 -8 -8 -7 -6 -6 -6 -6 -5 -5 ------------ Run | Yrd Mat Mat Mat Sto Fac Fac Low Low Dat Pro Fac Used RIF Installer . | . . . . . . . . . . . . Robots Hacked 2 | . . . . . . 1 . 1 . . . Non-combat . | . . . . . . . . . . . . Combat 2 | . . . . . . 1 . 1 . . . Robot Hacks Applied . | . . . . . . . . . . . . Relay Couplers Released . | . . . . . . . . . . . . Fabnet Peak Effective % 3 | . . . . . . 3 3 3 3 1 1 Autooverrided 2 | . . . . . . 1 . 1 . . . Robots Rewired . | . . . . . . . . . . . . Allies Hacked 1 | . . . . . . 1 . . . . . Hacks Repelled . | . . . . . . . . . . . . Allies | -11 -10 -9 -8 -8 -7 -6 -6 -6 -6 -5 -5 -------- Run | Yrd Mat Mat Mat Sto Fac Fac Low Low Dat Pro Fac Total Allies 13 | . . . . 10 . 2 . 1 . . . Largest Group 10 | . . . . 10 2 2 . 1 . . . Highest-Rated Group 173 | . . . . 173 29 63 . 30 . . . Highest-Rated Ally 37 | . . . . 29 16 37 . 30 . . . Total Orders . | . . . . . . . . . . . . Ally Attacks 67 | . . . . 53 11 . . 3 . . . Total Damage 1151 | . . . . 965 129 . . 57 . . . Kills 13 | . . . . 13 . . . . . . . Allies Corrupted . | . . . . . . . . . . . . Allies Melted . | . . . . . . . . . . . . Intel | -11 -10 -9 -8 -8 -7 -6 -6 -6 -6 -5 -5 ------- Run | Yrd Mat Mat Mat Sto Fac Fac Low Low Dat Pro Fac Active Infowar (turns) 3967 | . . . 610 485 829 1409 478 108 . . 48 Optics 1965 | . . . 609 38 . 732 478 108 . . . Sensors 2942 | . . . 610 485 829 1018 . . . . . Seismic 618 | . . . . . . . 462 108 . . 48 Robot Analysis Total . | . . . . . . . . . . . . Derelict Logs Recovered 2 | . . . . . . . . . . 2 . Drone Launches . | . . . . . . . . . . . . Drone Recoveries . | . . . . . . . . . . . . Exploration | -11 -10 -9 -8 -8 -7 -6 -6 -6 -6 -5 -5 ------------- Run | Yrd Mat Mat Mat Sto Fac Fac Low Low Dat Pro Fac Turns Passed 7512 | . 1070 967 610 485 829 1415 478 307 47 562 742 Spaces Moved 5884 | 1 573 596 298 325 703 1329 473 358 77 312 839 Core 343 | . . . . . . . . 324 19 . . Treads 142 | . 86 . . . . 53 . 3 . . . Legs 49 | 1 39 9 . . . . . . . . . Wheels 2584 | . 448 587 298 325 291 131 473 31 . . . Hover 2766 | . . . . . 412 1145 . . 58 312 839 Flight . | . . . . . . . . . . . . Fastest Speed 30 | 120 110 105 110 110 33 30 95 50 50 60 50 Average Speed 83 | 120 148 116 110 110 80 55 95 56 57 60 60 Slowest Speed 410 | 120 240 190 110 110 130 410 95 320 60 60 126 Overloaded Moves . | . . . . . . . . . . . . Propulsion Burnouts . | . . . . . . . . . . . . Robots Hopped . | . . . . . . . . . . . . Potential Cave-ins . | . . . . . . . . . . . . Cave-ins Triggered 1 | . . . . . . 1 . . . . . Exploration Rate (%) 47 | 2 71 63 26 78 26 35 78 55 68 50 19 Regions Visited 11 Branch Regions 5 Pre-discovered Areas 2 | . . . . 1 . . . . 1 . . Known Exits Taken 1 | . . . . . . 1 . . . . . Unknown Exits Taken 10 | 1 1 1 1 1 1 . 1 1 1 1 . Scrap Searched 5 | . . . . . . . 3 . . 2 . Spaces Dug 39 | . . . . . 11 13 . . . . 15 Terrain Destroyed 272 | . . . 29 26 11 57 . 75 . . 74 Melee 16 | . . . . . 3 13 . . . . . Projectile 18 | . . . . . 8 4 . 3 . . 3 AOE 238 | . . . 29 26 . 40 . 72 . . 71 Terrain Rammed . | . . . . . . . . . . . . Walls Destroyed . | . . . . . . . . . . . . Machines Disabled . | . . . . . . . . . . . . Actions | -11 -10 -9 -8 -8 -7 -6 -6 -6 -6 -5 -5 --------- Run | Yrd Mat Mat Mat Sto Fac Fac Low Low Dat Pro Fac Total 7863 | . 706 790 515 434 900 1795 500 427 79 685 1032 Wait 1230 | . 56 97 139 61 106 226 24 39 . 370 112 Move 5873 | . 572 595 297 324 702 1328 472 357 76 311 839 Hop . | . . . . . . . . . . . . Pick Up 92 | . 16 7 8 10 8 25 1 2 . 3 12 Fast Attach 63 | . 4 9 1 3 1 22 1 4 . 1 17 Attach 57 | . 4 3 6 4 8 16 . 1 3 . 12 Detach 28 | . 2 3 1 2 4 7 . . . . 9 Swap 84 | . 4 15 7 7 15 29 1 4 . . 2 Drop 72 | . 5 13 11 9 10 22 . . . . 2 Fire 308 | . 43 48 45 14 43 71 . 20 . . 24 Melee 39 | . . . . . 3 36 . . . . . Ram 3 | . . . . . . . . . . . 3 Kick . | . . . . . . . . . . . . Crush . | . . . . . . . . . . . . Escape Stasis 13 | . . . . . . 13 . . . . . Rewire 1 | . . . . . . . 1 . . . . Trap . | . . . . . . . . . . . . Miscellaneous . | . . . . . . . . . . . . Route ------- -11/Scrapyard -10/Materials (discovered 3 exits: *Mat x2 / Min) -9/Materials (discovered 4 exits: *Mat x2 / *Min x2) -8/Materials -8/Storage -7/Factory (discovered 2 exits: *Fac / [*Low]) -6/Factory (discovered 3 exits: *Fac / *Low x2) -6/Lower Caves -6/Lower Caves -6/Data Miner -5/Proximity Caves -5/Factory (discovered 4 exits: Upp x2 / Ext x2) History --------- Turn | Location | Event 1 | -11/Scrapyard | Discovered new exit (range 0) 1 | -11/Scrapyard | Entered Materials 301 | -10/Materials | Build established: Mutant 342 | -10/Materials | Discovered new exit (range 8) 424 | -10/Materials | Lost 4 parts (1p2n1w) 501 | -10/Materials | Derelicts attacked the area 898 | -10/Materials | Identified exit to Mines 1035 | -10/Materials | Discovered new exit (range 16) 1071 | -10/Materials | Entered another Materials area 1071 | -9/Materials | Evolved 2 slots: Propulsion x2 1432 | -9/Materials | Discovered new exit (range 13) 1567 | -9/Materials | Discovered new exit (range 6) 1899 | -9/Materials | Identified exit to Mines 1956 | -9/Materials | Discovered new exit (range 10) 2038 | -9/Materials | Entered another Materials area 2038 | -8/Materials | Evolved 2 slots: Utility x2 2569 | -8/Materials | Discovered new exit (range 6) 2648 | -8/Materials | Entered Storage 2658 | -8/Storage | Assisted by bots powering up and referring to "LRC-V3" 2747 | -8/Storage | Learned location of Armory (-4) 2751 | -8/Storage | Lost 4 allies 2963 | -8/Storage | Build established: Commander-Mutant 3056 | -8/Storage | Discovered new exit (range 16) 3068 | -8/Storage | Met 01-MTF 3133 | -8/Storage | Entered Factory 3133 | -7/Factory | Accompanied by 3 allies (01-MTF) 3133 | -7/Factory | Evolved 2 slots: Propulsion x2 3136 | -7/Factory | 01-MTF left 3314 | -7/Factory | Build established: Mutant 3868 | -7/Factory | Discovered new exit (range 16) 3953 | -7/Factory | Discovered new exit (range 14) 3962 | -7/Factory | Entered another Factory area 3962 | -6/Factory | Evolved 2 slots: Power x1, Propulsion x1 4119 | -6/Factory | Lost 4 parts (1p3n) 4419 | -6/Factory | Discovered new exit (range 16) 4603 | -6/Factory | Local machine network offline 4641 | -6/Factory | Crushed by falling debris 4828 | -6/Factory | Discovered new exit (range 19) 4989 | -6/Factory | Identified exit to Lower Caves 5088 | -6/Factory | Lost 7 parts (7n) 5217 | -6/Factory | Lost 4 parts (1n1u2w) 5327 | -6/Factory | Discovered exit to Lower Caves (range 10) 5330 | -6/Factory | Destroyed 9 combat bots 5362 | -6/Factory | First assault squad dispatched 5377 | -6/Factory | Entered Lower Caves 5414 | -6/Lower Caves | Build established: Scavenger-Mutant 5844 | -6/Lower Caves | Discovered new exit (range 13) 5855 | -6/Lower Caves | Entered another Lower Caves area 5878 | -6/Lower Caves | Attracted the attention of an 0b10 outpost 5949 | -6/Lower Caves | Core integrity fell below 50% 5963 | -6/Lower Caves | Released all parts (6) 5994 | -6/Lower Caves | Lost 10 parts (2p5n3w) 5999 | -6/Lower Caves | Encountered a Warlord checkpoint 6150 | -6/Lower Caves | Discovered new exit (range 16) 6162 | -6/Lower Caves | Entered Data Miner 6162 | -6/Data Miner | Discovered new exit (range 6) 6172 | -6/Data Miner | Met Data Miner 6189 | -6/Data Miner | Learned location of Section 7 (-2) 6189 | -6/Data Miner | Acquired the access code to Warlord's prototype stash 6195 | -6/Data Miner | Build established: Mutant 6195 | -6/Data Miner | Received God Mode back door access code from Data Miner 6209 | -6/Data Miner | Entered Proximity Caves 6210 | -5/Proximity Caves | Learned Factory stockpile data 6407 | -5/Proximity Caves | Learned Factory stockpile data 6413 | -5/Proximity Caves | Discovered new exit (range 8) 6559 | -5/Proximity Caves | Build established: Hacker-Mutant 6590 | -5/Proximity Caves | Received a Behemoth hack from an annoying Tinkerer 6771 | -5/Proximity Caves | Entered Factory 6771 | -5/Factory | Evolved 2 slots: Utility x2 6934 | -5/Factory | Identified exit to Upper Caves 6934 | -5/Factory | Identified exit to Extension 7228 | -5/Factory | Lost 3 parts (1p1n1u) 7278 | -5/Factory | Fabricated Enh. Coil Gun? 7302 | -5/Factory | Fabricated Lgt. Regenerative Plating? 7371 | -5/Factory | Core integrity fell below 50% 7411 | -5/Factory | Lost 11 parts (1p6n2u2w) 7502 | -5/Factory | Core integrity fell below 20% 7511 | -5/Factory | Lost 3 parts (3n) 7513 | -5/Factory | Self-destructed Last Messages --------------- 07446_ Slug penetrates Earth. 07446_ Backup Propulsion I destroyed. 07446_ Acquired 11 matter. 07447_ The unstable cave ceiling collapses. 07447_ Critical hit (Burn: +37). 07454_ Penetrated by Slug. 07454_ Slug penetrates Wall. 07464_ Slammed into G-50 Soldier. 07464_ Slug penetrates G-50 Soldier. 07464_ Slug penetrates Wall. 07464_ Cld. Airjet destroyed. 07466_ U-05 Engineer lays Concrete. 07469_ U-05 Engineer builds a Wall. 07476_ Acquired 77 matter. 07480_ Penetrated by Slug. 07480_ Cld. Airjet destroyed. 07483_ Penetrated by Slug. 07507_ Acquired Lgt. Regenerative Plating. 07512_ Slammed into K-01 Serf. 07512_ Mic. Fission Core destroyed. Map ----- +----------------------------------------------------+ | # ###################### ########+#### #? | | # #? | | # #? | | # """ ## | | # """"" ################# | | # ^ ^ """ " ##############??# | | # ####### ######### # #??? | | # #?????# #???????# """ " [ """" #??? | | # #?????# #???????# "" "" # """" #??? | | # #?????# #???????# "" # !! """" #??? | | # #?????# #???????# % # ! """ #??? | | # #?????# #???????# " # #??? | | # #######/####?#### """"" / """" """" #?## | | # ## ! #?#"" """"" # """" """" #?# | | # ## """" #?#"F # """" """" ### | | # ""S"" #?#""" # """" """ " | | # "" "" #?#""" w # ### | | # #?#### g g # #?# | | #### # #????# """ ### ##########?## | | ???# # #????# ^gRp""" #?###??????????? | | ???# # #????# " #??????????????# | | ???# ###+#####/###### "F" #??????????????# | | ???# """ #??????????????#! | | ???# ###### k #??????????????# | | ???# #????# |#??????????????#[ | | ???#########+###/#????###@########??????????????## | | ??????????? ??????????# #??????????????????????? | | ??????????? ??????????# #??????????????????????? | | ?????????? ?????????#k#??????????????????????? | | ?????????? ?????????# #??????????????????????? | | ????????? ????????# #??????????????????????? | | ????????? """" ????????#u#??????????????????????? | | ????????# """" ???????#k#??????????????????????? | | ????????# """" ???????# #??????????????????????? | | ????????# """? #???????+???????????????????????? | | ????????###????###??????? ???????????????????????? | | ????????????????????????? ???????????????????????? | | ????????????????????????? ???????????????????????? | | ????????????????????????? ???????????????????????? | | ????????????????????????? ???????????????????????? | | ????????????????????????? ???????????????????????? | | ?????????????????????????????????????????????????? | | ?????????????????????????????????????????????????? | | ??????????????????????????????????????????????!??? | | ?????????????????????????????????????????????????? | | ?????????????????????????????????????????????????? | | ?????????????????????????????????????????????????? | | ?????????????????????????????????????????????????? | | ?????????????????????????????????????????????????? | | ?????????????????????????????????????????????????? | +----------------------------------------------------+ Best States ------------- Heat Dissipation 59 Energy Generation 28 Energy Capacity 360 Matter Stores 300 Matter Capacity 300 Sight Range 22 Robot Scan Range 16 Terrain Scan Density 10 Armor Coverage 150 Resistance: TH 10 Evasion (%) 59 Targeting Accuracy 8 Recoil Reduction 4 Offensive Hacking 25 Defensive Hacking 12 Item Schematics ----------------- Combat Drone Bay | -6/Data Miner | Free Lgt. Regenerative Plating | -6/Data Miner | Free Cld. Gravmag System | -6/Data Miner | Free Prc. Energy Filter | -6/Data Miner | Free Enh. Coil Gun | -6/Data Miner | Free Imp. Gyrokinetic Inverter | -6/Data Miner | Free Imp. Phase Shifter | -6/Data Miner | Free Hvy. Disruptor Cannon | -6/Data Miner | Free Adv. Salvage Targeting Computer | -6/Data Miner | Free Imp. Fusion Compressor | -6/Data Miner | Free Hvy. Gauss Cannon | -6/Data Miner | Free Adv. Remote Force Field | -6/Data Miner | Free Quantum Rifle | -6/Data Miner | Free Lgt. Particle Reactor | -5/Factory | Hacked Gravmag Array | -5/Factory | Hacked Robot Schematics ------------------ R-10 Processor | -6/Data Miner | Free A-15 Conveyor | -6/Data Miner | Free B-48 Gladiator | -6/Data Miner | Free B-60 Warrior | -6/Data Miner | Free H-77 Assassin | -6/Data Miner | Free Y-64 Sentinel | -6/Data Miner | Free E-15 Imp | -6/Data Miner | Free Fabricated ------------ Enh. Coil Gun | x1 | -5/Factory Lgt. Regenerative Plating | x1 | -5/Factory Repaired ---------- Nothing Studied --------- None Alien Tech Used ----------------- None Achievements -------------- None Challenges ------------ None Game ------ Seed MakeshiftBottomlessGenerator Manual? 0 Play Time 01:36:17 Cumulative 300.3 hours Start 2026.01.18 @ 16:18:17 End 2026.01.20 @ 15:22:31 Sessions 6 Manual Loads 0 Difficulty Rogue Special Mode None Game No. 192 Rogue 192 Adventurer 0 Explorer 0 Win Type - Total 6 Types 4/0/1/1/0/0/0/0/0/0 Lore% 41 Gallery% 61 Achievement% 41 Wizard Run 0 Options --------- Layout 2 ASCII 0 Keyboard 1 Movement Numpad Keybinds 0 Fullscreen 1 Font 32/SmallcapsGlow Map View 50x44 Zoom Use 0% Tactical HUD 1 Map Filters NONE Filters NONE Steam 1 RUN: 11f47042-3140-4773-8df5-0b2663fe7aa8